lending/lending_fUSD_20240130
["ID","MTS","AMOUNT","RATE_DAILY","PERIOD"]
[313000999,1706583034572,-189.03,0.0003926,2]
[313001000,1706583034581,-501.03,0.00039325,2]
[313001001,1706583034589,-154.92925513,0.0003954,2]
[313001002,1706583034598,-488.37622361,0.000397,9]
[313001003,1706583034607,-1440.48330803,0.0003977,28]
[313001004,1706583034618,-68686.21633443,0.0003977,2]
[313001005,1706583034629,-31313.78366557,0.0003977,2]
[313001006,1706583034638,-210.80757545,0.000398,2]
[313001007,1706583034647,-1277.97451568,0.0003987,28]
[313001008,1706583034656,-34170.434,0.0003987,2]
[313001009,1706583034666,-350.00012539,0.000399,4]
[313001010,1706583034675,-500.0,0.000399,2]
[313001011,1706583034684,-1000.0,0.000399,15]
[313001012,1706583034694,-39346.2581,0.000399,2]
[313001013,1706583034703,-2023.35854558,0.000399,2]
[313001014,1706583034712,-959.02781888,0.0004,2]
[313001015,1706583034721,-155.0,0.0004,2]
[313001016,1706583034730,-54412.27449646,0.0004,4]
[313001017,1706583034739,-2275.63385097,0.0004,4]
[313001018,1706583034749,-713.38117008,0.0004,30]
[313001019,1706583034758,-162.36521623,0.0004,5]
[313001020,1706583034767,-235.48966138,0.0004,30]
[313001021,1706583034777,-178.06896247,0.0004,30]
[313001022,1706583034786,-958.30850213,0.0004,30]
[313001023,1706583034795,-10949.07186941,0.0004,4]
[313001024,1706583034804,-360.0,0.0004,12]
[313001025,1706583034813,-161.32072752,0.0004,12]
[313001026,1706583034822,-180.59186097,0.0004,2]
[313001027,1706583034831,-1087.07227528,0.0004,4]
[313001028,1706583034841,-2685.52322564,0.0004,4]
[313001029,1706583034850,-570.51160774,0.0004,4]
[313001030,1706583034859,-1574.5087088,0.00040373,30]
[313001031,1706583034869,-2452.68228586,0.00040373,19]
[313001032,1706583034878,-5075.13932395,0.00040373,19]
[313001033,1706583034887,-50000.0,0.00040373,30]
[313001034,1706583034896,-3191.62996946,0.00040373,18]
[313001035,1706583034905,-6185.26842115,0.00040373,19]
[313001036,1706583034914,-2770.10035409,0.00040373,18]
[313001037,1706583034923,-4576.88239704,0.00040373,18]
[313001038,1706583034932,-620.04,0.000407,4]
[313001039,1706583034941,-620.04,0.000407,4]
[313001040,1706583034950,-620.04,0.000407,4]
[313001041,1706583034961,-620.04,0.000407,4]
[313001042,1706583034971,-620.04,0.000407,4]
[313001043,1706583034980,-620.04,0.000407,4]
[313001044,1706583034990,-620.04,0.000407,4]
[313001045,1706583034999,-620.04,0.000407,4]
[313001046,1706583035009,-620.04,0.000407,4]
[313001047,1706583035018,-620.04,0.000407,4]
[313001048,1706583035028,-620.04,0.000407,4]
[313001049,1706583035038,-620.04,0.000407,4]
[313001050,1706583035047,-620.04,0.000407,4]
[313001051,1706583035058,-620.04,0.000407,4]
[313001052,1706583035070,-620.04,0.000407,4]
[313001053,1706583035080,-620.04,0.000407,4]
[313001054,1706583035089,-620.04,0.000407,4]
[313001055,1706583035099,-620.04,0.000407,4]
[313001056,1706583035109,-620.04,0.000407,4]
[313001057,1706583035120,-620.04,0.000407,4]
[313001058,1706583035129,-541.93130267,0.00041,120]
[313001059,1706583035138,-3676.82133131,0.00041,3]
[313001060,1706583035150,-150.0,0.00041096,2]
[313001061,1706583035160,-1000.0,0.000411,2]
[313001062,1706583035169,-488.37622361,0.000413,10]
[313001063,1706583035179,-2023.3585454,0.00041479,5]
[313001064,1706583035189,-230.09657364,0.00041522,4]
[313001065,1706583035199,-501.03,0.00041589,2]
[313001066,1706583035209,-157.0,0.00041644,7]
[313001067,1706583035218,-425.7,0.00041644,2]
[313001068,1706583035228,-4710.4466072,0.00041757,11]
[313001069,1706583035238,-14320.06967382,0.00041767,8]
[313001070,1706583035260,-4856.39331479,0.00041767,8]
[313001071,1706583035304,-943.58388381,0.00041767,8]
[313001072,1706583035315,-259.56543941,0.00041767,8]
[313001073,1706583035327,-1743.3126006,0.00041767,8]
[313001074,1706583035339,-834.37633062,0.00041767,8]
[313001075,1706583035360,-71510.81653065,0.00041767,8]
[313001076,1706583035372,-1319.00914708,0.00041787,60]
[313001077,1706583035382,-226.56829083,0.00041787,24]
[313001078,1706583035391,-673.79213349,0.00041787,60]
[313001079,1706583035401,-184.03102714,0.00041787,90]
[313001080,1706583035411,-306.08018233,0.00041787,120]
[313001081,1706583035421,-151.49683964,0.00041787,120]
[313001082,1706583035431,-300.09661675,0.00041787,120]
[313001083,1706583035440,-1794.8103233,0.00041787,120]
[313001084,1706583035450,-1380.1121369,0.00041787,30]
[313001085,1706583035460,-175.20321181,0.00041787,60]
[313001086,1706583035480,-156.22755766,0.00041787,120]
[313001087,1706583035491,-177.61885687,0.00041787,120]
[313001088,1706583035501,-1582.51576366,0.00041787,120]
[313001089,1706583035510,-590.30638296,0.00041787,120]
[313001090,1706583035520,-402.29828169,0.00041787,30]
[313001091,1706583035529,-253.0,0.00041787,120]
[313001092,1706583035538,-150.0,0.00041787,30]
[313001093,1706583035548,-206.996852,0.00041787,30]
[313001094,1706583035558,-391.07075922,0.00041787,2]
[313001095,1706583035567,-306.794346,0.00041787,30]
[313001096,1706583035576,-207.533682,0.000418,2]
[313001097,1706583035587,-1525.095189,0.000418,37]
[313001098,1706583035596,-4710.4466072,0.0004199,11]
[313001099,1706583035606,-869.0,0.0004199,2]
[313001100,1706583035617,-191.0,0.0004199,2]
[313001101,1706583035627,-197.70359991,0.0004199,2]
[313001102,1706583035636,-1000.0,0.00042,60]
[313001103,1706583035645,-279.63756658,0.00042,34]
[313001104,1706583035654,-3777.72728748,0.00042,30]
[313001105,1706583035664,-10000.0,0.00042,2]
[313001106,1706583035674,-154.92925513,0.00042071,2]
[313001107,1706583035683,-532.0,0.0004209,2]
[313001108,1706583035694,-150.0,0.00042177,2]
[313001109,1706583035704,-189.03,0.00042205,2]
[313001110,1706583035714,-4710.4466072,0.00042223,11]
[313001111,1706583035724,-1000.0,0.00042344,2]
[313001112,1706583035733,-4710.4466072,0.00042496,11]
[313001113,1706583035743,-1000.0,0.00042581,15]
[313001114,1706583035753,-1798.64,0.00042623,5]
[313001115,1706583035762,-518.0,0.0004269,2]
[313001116,1706583035772,-4710.4466072,0.0004278,11]
[313001117,1706583035781,-3676.82133131,0.000429,5]
[313001118,1706583035791,-488.37622361,0.000429,11]
[313001119,1706583035801,-4710.4466072,0.0004299,11]
[313001120,1706583035810,-1462.132077,0.00043,120]
[313001121,1706583035820,-350.0,0.00043,35]
[313001122,1706583035830,-2664.64777,0.00043,2]
[313001123,1706583035840,-4710.4466072,0.00043048,11]
[313001124,1706583035850,-2023.3585454,0.00043058,5]
[313001125,1706583035859,-1609.12727482,0.00043111,30]
[313001126,1706583035872,-150.0,0.00043259,2]
[313001127,1706583035882,-517.0,0.0004339,2]
[313001128,1706583035892,-4710.4466072,0.00043611,11]
[313001129,1706583035901,-4710.4466072,0.0004379,11]
[313001130,1706583035911,-448.08280472,0.000438,30]
[313001131,1706583035921,-1000.0,0.000438,2]
[313001132,1706583035931,-1889.0,0.000438,7]
[313001133,1706583035941,-488.49,0.00043836,15]
[313001134,1706583035950,-501.03,0.00043853,2]
[313001135,1706583035961,-211.26345424,0.00043999,2]
[313001136,1706583035974,-1398.22258203,0.00044,31]
[313001137,1706583035985,-210.99598207,0.00044,32]
[313001138,1706583035995,-350.0,0.00044,36]
[313001139,1706583036005,-533.0,0.0004409,2]
[313001140,1706583036015,-4710.4466072,0.00044137,11]
[313001141,1706583036025,-6199.36398321,0.00044147,2]
[313001142,1706583036034,-249.0831616,0.00044195,4]
[313001143,1706583036044,-4710.4466072,0.00044204,11]
[313001144,1706583036057,-172.31,0.00044244,2]
[313001145,1706583036067,-150.0,0.0004434,2]
[313001146,1706583036079,-488.37622361,0.000445,11]
[313001147,1706583036089,-9420.8932144,0.00044565,11]
[313001148,1706583036099,-4710.4466072,0.00044574,11]
[313001149,1706583036108,-154.92925513,0.00044603,2]
[313001150,1706583036119,-2023.3585454,0.00044637,5]
[313001151,1706583036129,-762.0,0.0004469,2]
[313001152,1706583036139,-4710.4466072,0.0004474,11]
[313001153,1706583036149,-393.05910412,0.00044747,2]
[313001154,1706583036160,-9175.01300821,0.0004475,2]
[313001155,1706583036170,-4710.4466072,0.00044778,11]
[313001156,1706583036180,-514.0,0.0004479,2]
[313001157,1706583036191,-152.70077236,0.000448,24]
[313001158,1706583036201,-3676.82133131,0.000448,6]
[313001159,1706583036211,-4710.4466072,0.00044816,11]
[313001160,1706583036222,-6199.36398321,0.00044826,2]
[313001161,1706583036232,-94468.1177737,0.00044871,10]
[313001162,1706583036242,-3051.33469733,0.0004488,20]
[313001163,1706583036252,-4710.4466072,0.0004488,11]
[313001164,1706583036262,-42394.0194648,0.00044882,11]
[313001165,1706583036272,-4710.4466072,0.0004489,11]
[313001166,1706583036282,-1361.0,0.0004489,2]
[313001167,1706583036292,-293.0,0.0004489,2]
[313001168,1706583036301,-18841.7864288,0.00044891,11]
[313001169,1706583036310,-198.83199718,0.000449,2]
[313001170,1706583036324,-4710.4466072,0.00044911,11]
[313001171,1706583036334,-4710.4466072,0.00044911,11]
[313001172,1706583036627,-4710.4466072,0.00044922,11]
[313001173,1706583036637,-4710.4466072,0.00044931,11]
[313001174,1706583036647,-403.07,0.00044932,2]
[313001175,1706583036656,-944.46,0.00044932,2]
[313001176,1706583036666,-944.07,0.00044932,2]
[313001177,1706583036675,-944.07,0.00044932,2]
[313001178,1706583036684,-944.07,0.00044932,2]
[313001179,1706583036694,-944.07,0.00044932,2]
[313001180,1706583036704,-944.07,0.00044932,2]
[313001181,1706583036714,-431.43,0.00044932,2]
[313001182,1706583036724,-402.91,0.00044932,2]
[313001183,1706583036733,-944.07,0.00044932,2]
[313001184,1706583036743,-402.91,0.00044932,2]
[313001185,1706583036753,-402.91,0.00044932,2]
[313001186,1706583036762,-806.74,0.00044932,2]
[313001187,1706583036772,-14131.3398216,0.0004494,11]
[313001188,1706583036781,-4710.4466072,0.00044951,12]
[313001189,1706583036790,-9420.8932144,0.0004497,12]
[313001190,1706583036800,-23552.233036,0.0004498,12]
[313001191,1706583036809,-666.0,0.00044989,2]
[313001192,1706583036818,-171.23,0.00044989,15]
[313001193,1706583036828,-171.23,0.00044989,15]
[313001194,1706583036837,-171.23,0.00044989,15]
[313001195,1706583036847,-188936.235547,0.0004499,10]
[313001196,1706583036856,-155.49422921,0.00045,2]
[313001197,1706583036867,-253.11560498,0.00045,4]
[313001198,1706583036876,-211.46358458,0.00045,7]
[313001199,1706583036885,-378231.70007364,0.00045,4]
[313001200,1706583036895,-927.23328437,0.00045,60]
[313001201,1706583036904,-350.0,0.00045,37]
[313001202,1706583036912,-1011.0,0.00045,7]
[313001203,1706583036922,-247.0,0.00045,2]
[313001204,1706583036931,-2519.0,0.00045,2]
[313001205,1706583036940,-5000.0,0.00045068,4]
[313001206,1706583036949,-189.03,0.00045149,2]
[313001207,1706583036958,-620.04,0.000452,5]
[313001208,1706583036968,-620.04,0.000452,5]
[313001209,1706583036977,-620.04,0.000452,5]
[313001210,1706583036986,-620.04,0.000452,5]
[313001211,1706583036996,-620.04,0.000452,5]
[313001212,1706583037005,-620.04,0.000452,5]
[313001213,1706583037014,-620.04,0.000452,5]
[313001214,1706583037024,-620.04,0.000452,5]
[313001215,1706583037033,-620.04,0.000452,5]
[313001216,1706583037044,-620.04,0.000452,5]
[313001217,1706583037055,-620.04,0.000452,5]
[313001218,1706583037066,-620.04,0.000452,5]
[313001219,1706583037078,-620.04,0.000452,5]
[313001220,1706583037088,-620.04,0.000452,5]
[313001221,1706583037098,-620.04,0.000452,5]
[313001222,1706583037108,-620.04,0.000452,5]
[313001223,1706583037118,-620.04,0.000452,5]
[313001224,1706583037128,-620.04,0.000452,5]
[313001225,1706583037137,-620.04,0.000452,5]
[313001226,1706583037146,-620.04,0.000452,5]
[313001227,1706583037158,-152.70077223,0.00045325,26]
[313001228,1706583037168,-150.0,0.00045422,2]
[313001229,1706583037179,-3051.33469731,0.00045427,20]
[313001230,1706583037188,-523.0,0.0004549,2]
[313001231,1706583037197,-1225.66021429,0.000455,2]
[313001232,1706583037206,-6199.36398321,0.00045505,2]
[313001233,1706583037216,-152.56220176,0.000456,2]
[313001234,1706583037225,-1110.41,0.0004583,120]
[313001235,1706583037234,-152.70077223,0.0004585,28]
[313001236,1706583037253,-165.38511775,0.00045892,120]
[313001237,1706583037263,-3051.33469731,0.00045975,21]
[313001238,1706583037272,-500.0,0.00046,2]
[313001239,1706583037282,-350.0,0.00046,38]
[313001240,1706583037292,-300.0,0.00046048,2]
[313001241,1706583037301,-550.0,0.0004609,2]
[313001242,1706583037311,-488.37622361,0.000461,12]
[313001243,1706583037321,-501.03,0.00046117,2]
[313001244,1706583037330,-6199.36398321,0.00046184,2]
[313001245,1706583037340,-2023.3585454,0.00046216,5]
[313001246,1706583037350,-201.013,0.00046298,52]
[313001247,1706583037359,-152.61271863,0.00046301,7]
[313001248,1706583037369,-282.8516771,0.00046301,7]
[313001249,1706583037379,-633.85,0.00046301,2]
[313001250,1706583037388,-350.49,0.00046301,2]
[313001251,1706583037397,-341.14,0.00046301,2]
[313001252,1706583037407,-341.14,0.00046301,2]
[313001253,1706583037416,-341.14,0.00046301,2]
[313001254,1706583037426,-152.70077223,0.00046375,30]
[313001255,1706583037436,-201.013,0.00046398,52]
[313001256,1706583037445,-5000.0,0.00046412,7]
[313001257,1706583037455,-201.013,0.00046498,52]
[313001258,1706583037465,-150.0,0.00046503,2]
[313001259,1706583037475,-3051.33469731,0.00046522,22]
[313001260,1706583037484,-1000.0,0.00046579,2]
[313001261,1706583037494,-201.013,0.00046598,52]
[313001262,1706583037503,-1000.0,0.000466,2]
[313001263,1706583037513,-201.013,0.00046698,52]
[313001264,1706583037522,-3676.82133131,0.000467,8]
[313001265,1706583037532,-508.0,0.0004679,2]
[313001266,1706583037541,-201.013,0.00046798,52]
[313001267,1706583037551,-150.0,0.00046852,7]
[313001268,1706583037560,-150.0,0.00046856,7]
[313001269,1706583037569,-151.0,0.00046863,14]
[313001270,1706583037578,-6199.36398321,0.00046863,2]
[313001271,1706583037588,-150.0,0.00046867,7]
[313001272,1706583037597,-150.0,0.00046871,7]
[313001273,1706583037606,-218.585945,0.0004688,30]
[313001274,1706583037617,-150.0,0.00046894,7]
[313001275,1706583037626,-201.013,0.00046898,53]
[313001276,1706583037635,-230.28633955,0.00046898,2]
[313001277,1706583037644,-152.70077223,0.000469,32]
[313001278,1706583037654,-150.0,0.000469,7]
[313001279,1706583037663,-1551.69678232,0.00046933,7]
[313001280,1706583037672,-150.0,0.00046933,7]
[313001281,1706583037681,-200.25459461,0.00046939,2]
[313001282,1706583037690,-150.0,0.00046941,7]
[313001283,1706583037700,-200.0,0.00046987,36]
[313001284,1706583037709,-201.013,0.00046998,53]
[313001285,1706583037718,-152.0,0.00047,3]
[313001286,1706583037727,-350.0,0.00047,39]
[313001287,1706583037737,-150.0,0.00047031,7]
[313001288,1706583037746,-94468.1177737,0.00047034,11]
[313001289,1706583037755,-201.00271026,0.00047039,7]
[313001290,1706583037764,-666.0,0.00047044,2]
[313001291,1706583037774,-150.0,0.0004706,7]
[313001292,1706583037783,-3051.33469731,0.00047069,22]
[313001293,1706583037792,-201.013,0.00047098,53]
[313001294,1706583037803,-153.75241455,0.000471,7]
[313001295,1706583037814,-150.0,0.00047106,7]
[313001296,1706583037824,-150.0,0.00047127,7]
[313001297,1706583037835,-154.92925513,0.00047134,2]
[313001298,1706583037845,-4107.0,0.0004719,2]
[313001299,1706583037855,-645.0,0.0004719,2]
[313001300,1706583037864,-201.013,0.00047198,53]
[313001301,1706583037876,-150.0,0.00047208,7]
[313001302,1706583037886,-150.0,0.00047227,7]
[313001303,1706583037896,-150.0,0.00047233,7]
[313001304,1706583037907,-953.338,0.00047234,2]
[313001305,1706583037916,-677.899,0.00047234,2]
[313001306,1706583037925,-705.0,0.00047234,2]
[313001307,1706583037935,-325.828,0.00047234,2]
[313001309,1706583037946,-532.078,0.00047234,2]
[313001311,1706583037955,-1233.0,0.00047234,2]
[313001312,1706583037965,-1260.212,0.00047234,2]
[313001313,1706583037975,-310.998,0.00047234,2]
[313001314,1706583037985,-1003.737,0.00047234,2]
[313001315,1706583037994,-555.667,0.00047234,2]
[313001317,1706583038004,-2069.761,0.00047234,2]
[313001318,1706583038014,-598.681,0.00047234,2]
[313001319,1706583038024,-861.0,0.00047234,2]
[313001320,1706583038034,-1138.0,0.00047234,2]
[313001321,1706583038043,-150.475,0.00047234,2]
[313001322,1706583038052,-320.0,0.00047234,2]
[313001323,1706583038064,-4489.013,0.00047234,2]
[313001324,1706583038075,-2932.705,0.00047234,2]
[313001325,1706583038085,-1890.291,0.00047234,2]
[313001326,1706583038095,-2296.207,0.00047234,2]
[313001327,1706583038105,-250.0,0.00047234,2]
[313001328,1706583038113,-1759.957,0.00047234,2]
[313001329,1706583038124,-19853.826,0.00047234,2]
[313001330,1706583038132,-3589.593,0.00047234,2]
[313001331,1706583038142,-214.556,0.00047234,2]
[313001332,1706583038152,-157.0,0.00047234,2]
[313001333,1706583038160,-158.259,0.00047234,2]
[313001334,1706583038170,-250.0,0.00047234,2]
[313001335,1706583038179,-198.0,0.00047234,2]
[313001336,1706583038188,-1038.918,0.00047234,2]
[313001337,1706583038197,-226.984,0.00047234,2]
[313001338,1706583038207,-150.0,0.00047279,7]
[313001339,1706583038216,-5000.0,0.00047287,4]
[313001340,1706583038226,-150.0,0.00047288,7]
[313001341,1706583038236,-201.013,0.00047298,53]
[313001342,1706583038245,-150.0,0.000473,7]
[313001343,1706583038254,-150.0,0.000473,7]
[313001344,1706583038263,-150.0,0.00047331,7]
[313001345,1706583038273,-150.0,0.00047394,7]
[313001346,1706583038282,-150.0,0.00047396,7]
[313001347,1706583038291,-201.013,0.00047398,53]
[313001348,1706583038301,-485.0,0.000474,30]
[313001349,1706583038311,-150.0,0.00047406,7]
[313001350,1706583038320,-150.0,0.0004742,7]
[313001351,1706583038329,-152.70077223,0.00047425,34]
[313001352,1706583038339,-150.0,0.00047432,7]
[313001353,1706583038348,-150.0,0.00047451,7]
[313001354,1706583038358,-150.0,0.00047478,7]
[313001355,1706583038369,-1500.0,0.0004749,7]
[313001356,1706583038378,-525.0,0.0004749,2]
[313001357,1706583038388,-150.0,0.00047495,7]
[313001358,1706583038397,-187.16258007,0.00047496,7]
[313001359,1706583038406,-201.013,0.00047498,54]
[313001360,1706583038416,-1500.0,0.000475,30]
[313001361,1706583038425,-151.87707358,0.0004752,2]
[313001362,1706583038434,-6199.36398321,0.00047542,2]
[313001363,1706583038443,-150.0,0.00047562,7]
[313001364,1706583038453,-488.49,0.00047572,15]
[313001365,1706583038463,-150.0,0.00047585,2]
[313001366,1706583038472,-201.013,0.00047598,54]
[313001367,1706583038482,-151.73193384,0.00047612,7]
[313001368,1706583038491,-200.0,0.00047614,10]
[313001369,1706583038501,-800.0,0.00047614,10]
[313001370,1706583038511,-3051.33469731,0.00047616,23]
[313001371,1706583038521,-150.0,0.00047618,7]
[313001372,1706583038532,-150.0,0.00047624,7]
[313001373,1706583038541,-150.0,0.00047641,7]
[313001374,1706583038552,-151.013,0.00047698,54]
[313001375,1706583038562,-488.37622361,0.000477,13]
[313001376,1706583038572,-150.0,0.00047703,7]
[313001377,1706583038581,-153.11248239,0.00047743,7]
[313001378,1706583038591,-150.0,0.00047751,7]
[313001379,1706583038601,-150.0,0.00047757,7]
[313001380,1706583038611,-150.0,0.00047762,7]
[313001381,1706583038622,-150.0,0.00047784,7]
[313001382,1706583038632,-150.0,0.00047788,7]
[313001383,1706583038642,-1108.0,0.0004779,2]
[313001384,1706583038652,-611.0,0.0004779,2]
[313001385,1706583038662,-150.0,0.00047794,7]
[313001386,1706583038672,-2023.3585454,0.00047795,5]
[313001387,1706583038683,-151.013,0.00047798,54]
[313001388,1706583038692,-1000.0,0.000478,8]
[313001389,1706583038702,-150.0,0.00047807,7]
[313001390,1706583038712,-944.07,0.00047808,2]
[313001391,1706583038722,-944.07,0.00047808,2]
[313001392,1706583038731,-944.07,0.00047808,2]
[313001393,1706583038740,-402.91,0.00047808,2]
[313001394,1706583038749,-944.07,0.00047808,2]
[313001395,1706583038758,-944.07,0.00047808,2]
[313001396,1706583038767,-402.91,0.00047808,2]
[313001397,1706583038777,-402.91,0.00047808,2]
[313001398,1706583038785,-402.91,0.00047808,2]
[313001399,1706583038794,-944.07,0.00047808,2]
[313001400,1706583038804,-978.19,0.00047808,2]
[313001401,1706583038813,-402.91,0.00047808,2]
[313001402,1706583038823,-944.07,0.00047808,2]
[313001403,1706583038832,-402.91,0.00047808,2]
[313001404,1706583038842,-416.51,0.00047808,2]
[313001405,1706583038851,-944.07,0.00047808,2]
[313001406,1706583038860,-944.07,0.00047808,2]
[313001407,1706583038871,-402.91,0.00047808,2]
[313001408,1706583038880,-402.91,0.00047808,2]
[313001409,1706583038890,-402.91,0.00047808,2]
[313001410,1706583038899,-1702.07,0.00047808,2]
[313001411,1706583038908,-402.91,0.00047808,2]
[313001412,1706583038918,-944.07,0.00047808,2]
[313001413,1706583038927,-402.91,0.00047808,2]
[313001414,1706583038937,-193.1028207,0.00047808,2]
[313001415,1706583038946,-150.0,0.00047816,7]
[313001416,1706583038956,-150.0,0.00047818,7]
[313001417,1706583038966,-19394.0,0.0004789,2]
[313001418,1706583038975,-4100.0,0.0004789,2]
[313001419,1706583038985,-198.83199718,0.00047894,2]
[313001420,1706583038994,-150.0,0.00047897,7]
[313001421,1706583039004,-151.013,0.00047898,54]
[313001422,1706583039013,-150.0,0.00047904,7]
[313001423,1706583039023,-150.0,0.00047904,7]
[313001424,1706583039032,-150.0,0.00047916,7]
[313001425,1706583039042,-1500.0,0.00047918,7]
[313001426,1706583039051,-150.0,0.00047934,7]
[313001427,1706583039060,-200.0,0.00047945,120]
[313001428,1706583039069,-152.70077223,0.0004795,36]
[313001429,1706583039081,-150.0,0.00047963,7]
[313001430,1706583039091,-1986.0,0.00047973,30]
[313001431,1706583039100,-393.05910412,0.00047973,2]
[313001432,1706583039110,-94468.1177737,0.00047976,11]
[313001433,1706583039121,-150.0,0.00047982,7]
[313001434,1706583039131,-234.7483183,0.00047986,2]
[313001435,1706583039140,-78360.84881444,0.00047986,2]
[313001436,1706583039149,-197.742317,0.00047986,14]
[313001437,1706583039158,-197.742317,0.00047986,14]
[313001438,1706583039167,-151.0,0.00047986,14]
[313001439,1706583039176,-159.737427,0.00047986,14]
[313001440,1706583039185,-159.737427,0.00047986,14]
[313001441,1706583039194,-151.0,0.00047986,14]
[313001442,1706583039204,-151.0,0.00047986,14]
[313001443,1706583039213,-151.0,0.00047986,14]
[313001444,1706583039222,-17021.39256008,0.00047986,2]
[313001445,1706583039231,-200.0,0.00047987,37]
[313001446,1706583039241,-151.0,0.0004799,14]
[313001447,1706583039250,-151.0,0.0004799,14]
[313001448,1706583039259,-153.638062,0.0004799,14]
[313001450,1706583039269,-150.0,0.0004799,7]
[313001452,1706583039279,-94468.1177737,0.0004799,11]
[313001453,1706583039289,-151.0,0.0004799,14]
[313001454,1706583039299,-3214.8919779,0.00047994,2]
[313001455,1706583039308,-141296.7488373,0.00047994,2]
[313001456,1706583039317,-3942.4983561,0.00047994,2]
[313001457,1706583039327,-2435.651493,0.00047994,2]
[313001458,1706583039336,-459.2492227,0.00047994,2]
[313001459,1706583039345,-456.73726774,0.00047995,4]
[313001460,1706583039355,-150.01,0.00047997,2]
[313001461,1706583039364,-3305.32624244,0.00047997,2]
[313001462,1706583039375,-151.013,0.00047998,54]
[313001463,1706583039385,-356063.47943911,0.00048,14]
[313001464,1706583039394,-800.0,0.00048,4]
[313001465,1706583039403,-300.0,0.00048,30]
[313001466,1706583039413,-300.0,0.00048,40]
[313001467,1706583039422,-3000.0,0.00048,30]
[313001468,1706583039432,-171.07864913,0.00048,30]
[313001469,1706583039441,-47049.04457492,0.00048,14]
[313001470,1706583039450,-151.0,0.00048,14]
[313001471,1706583039459,-151.0,0.00048,14]
[313001472,1706583039468,-197.742317,0.00048,14]
[313001473,1706583039477,-197.742317,0.00048,14]
[313001474,1706583039486,-151.0,0.00048,14]
[313001475,1706583039495,-2664.64777,0.00048,2]
[313001476,1706583039504,-159.737427,0.00048,14]
[313001477,1706583039514,-159.737427,0.00048,14]
[313001478,1706583039523,-151.0,0.00048,14]
[313001479,1706583039533,-156.848243,0.00048,14]
[313001480,1706583039542,-151.0,0.00048,14]
[313001481,1706583039551,-151.0,0.00048,14]
[313001482,1706583039560,-151.013,0.00048098,54]
[313001483,1706583039570,-3051.33469731,0.00048164,24]
[313001484,1706583039579,-467.0,0.0004819,2]
[313001485,1706583039588,-1225.66021428,0.00048194,2]
[313001486,1706583039597,-151.013,0.00048198,54]
[313001487,1706583039606,-6199.36398321,0.00048221,2]
[313001488,1706583039616,-151.013,0.00048298,54]
[313001489,1706583039627,-501.03,0.00048381,2]
[313001490,1706583039638,-500.0,0.00048384,14]
[313001491,1706583039647,-151.013,0.00048398,54]
[313001492,1706583039656,-157.86,0.000484,7]
[313001493,1706583039665,-152.70077223,0.00048475,38]
[313001494,1706583039674,-151.013,0.00048498,54]
[313001495,1706583039684,-244.75156499,0.000485,2]
[313001496,1706583039693,-151.013,0.00048598,55]
[313001497,1706583039703,-3676.82133131,0.000486,10]
[313001498,1706583039712,-150.0,0.00048666,2]
[313001499,1706583039721,-563.0,0.0004869,2]
[313001500,1706583039730,-151.013,0.00048698,55]
[313001501,1706583039740,-3051.33469731,0.00048711,24]
[313001502,1706583039749,-944.07,0.00048767,2]
[313001503,1706583039758,-402.91,0.00048767,2]